fUSD/lending_fUSD_20260531
["ID","MTS","AMOUNT","RATE_DAILY","PERIOD"]
[423565525,1780233044000,-1169.23479,0.0001485,2]
[423565552,1780233044000,-10679.24065909,0.000149,2]
[423565556,1780233044000,-44511.74818075,0.000149,2]
[423565559,1780233044000,-386.0,0.00014915,2]
[423565561,1780233044000,-386.0,0.00014918,2]
[423565568,1780233044000,-9456.75425201,0.00014946,2]
[423565562,1780233044000,-386.0,0.00014924,2]
[423565570,1780233044000,-273.05167002,0.0001496,2]
[423565563,1780233044000,-386.0,0.00014925,2]
[423565566,1780233044000,-386.0,0.00014931,2]
[423565571,1780233044000,-386.0,0.00014967,2]
[423565560,1780233044000,-386.0,0.00014916,2]
[423565565,1780233044000,-386.0,0.00014929,2]
[423565564,1780233044000,-150.0,0.00014926,2]
[423565569,1780233044000,-386.0,0.00014947,2]
[423565567,1780233044000,-150.0,0.00014942,2]
[423565574,1780233044000,-150.0,0.00014986,2]
[423565576,1780233044000,-150.0,0.00014986,2]
[423565572,1780233044000,-350.0,0.00014982,2]
[423565579,1780233044000,-269.1557045,0.00014986,2]
[423565578,1780233044000,-157.6354537,0.00014986,2]
[423565577,1780233044000,-153.77401671,0.00014986,2]
[423565580,1780233044000,-412.94807384,0.0001499,2]
[423565573,1780233044000,-386.0,0.00014983,2]
[423565581,1780233044000,-412.94807384,0.0001499,2]
[423565528,1780233044000,-386.0,0.00014853,2]
[423565554,1780233044000,-701.99310274,0.000149,2]
[423565553,1780233044000,-300.0,0.000149,5]
[423565575,1780233044000,-269.80331714,0.00014986,2]
[423565557,1780233044000,-386.0,0.00014913,2]
[423565555,1780233044000,-34782.38027615,0.000149,2]
[423565527,1780233044000,-1169.2348,0.0001485,2]
[423565530,1780233044000,-386.0,0.00014856,2]
[423565526,1780233044000,-1169.2348,0.0001485,2]
[423565529,1780233044000,-150.0,0.00014854,2]
[423565532,1780233044000,-435.707,0.00014863,2]
[423565533,1780233044000,-150.0,0.00014866,2]
[423565536,1780233044000,-10000.0,0.00014875,2]
[423565535,1780233044000,-500.0,0.00014874,2]
[423565546,1780233044000,-386.0,0.00014885,2]
[423565537,1780233044000,-386.0,0.00014878,2]
[423565540,1780233044000,-200.0,0.00014879,2]
[423565531,1780233044000,-386.0,0.0001486,2]
[423565538,1780233044000,-200.0,0.00014878,2]
[423565539,1780233044000,-1000.0,0.00014879,2]
[423565551,1780233044000,-151.0,0.00014899,2]
[423565549,1780233044000,-150.0,0.00014898,2]
[423565550,1780233044000,-2555.15,0.00014899,2]
[423565558,1780233044000,-386.0,0.00014915,2]
[423565548,1780233044000,-386.0,0.00014886,2]
[423565547,1780233044000,-9966.73870733,0.00014886,2]
[423565541,1780233044000,-200.0,0.00014879,2]
[423565545,1780233044000,-386.0,0.00014884,2]
[423565542,1780233044000,-200.0,0.00014879,2]
[423565544,1780233044000,-235.84845153,0.0001488,2]
[423565543,1780233044000,-163.0,0.0001488,2]
[423565601,1780233045000,-690.92,0.00014999,2]
[423565605,1780233045000,-500.0,0.00014999,2]
[423565604,1780233045000,-500.0,0.00014999,2]
[423565615,1780233045000,-565.6,0.00014999,2]
[423565616,1780233045000,-565.64368182,0.00014999,2]
[423565606,1780233045000,-500.0,0.00014999,2]
[423565608,1780233045000,-500.0,0.00014999,2]
[423565611,1780233045000,-565.6,0.00014999,2]
[423565613,1780233045000,-565.6,0.00014999,2]
[423565607,1780233045000,-500.0,0.00014999,2]
[423565610,1780233045000,-565.6,0.00014999,2]
[423565612,1780233045000,-565.6,0.00014999,2]
[423565614,1780233045000,-565.6,0.00014999,2]
[423565620,1780233045000,-714.91,0.00014999,2]
[423565617,1780233045000,-714.91,0.00014999,2]
[423565619,1780233045000,-714.91,0.00014999,2]
[423565622,1780233045000,-714.91,0.00014999,2]
[423565609,1780233045000,-263.08171548,0.00014999,2]
[423565600,1780233045000,-690.92,0.00014999,2]
[423565588,1780233045000,-2555.15,0.00014999,2]
[423565595,1780233045000,-560.8,0.00014999,2]
[423565628,1780233045000,-1056.43,0.00014999,2]
[423565583,1780233045000,-151.0,0.00014997,2]
[423565582,1780233045000,-2555.15,0.00014996,2]
[423565584,1780233045000,-287.02,0.00014999,2]
[423565585,1780233045000,-2555.15,0.00014999,2]
[423565587,1780233045000,-2555.15,0.00014999,2]
[423565589,1780233045000,-2555.30931476,0.00014999,2]
[423565590,1780233045000,-560.8,0.00014999,2]
[423565597,1780233045000,-690.92,0.00014999,2]
[423565586,1780233045000,-2555.15,0.00014999,2]
[423565591,1780233045000,-560.8,0.00014999,2]
[423565594,1780233045000,-560.8,0.00014999,2]
[423565599,1780233045000,-690.92,0.00014999,2]
[423565596,1780233045000,-560.9,0.00014999,2]
[423565592,1780233045000,-560.8,0.00014999,2]
[423565602,1780233045000,-690.92,0.00014999,2]
[423565603,1780233045000,-691.07,0.00014999,2]
[423565598,1780233045000,-690.92,0.00014999,2]
[423565593,1780233045000,-560.8,0.00014999,2]
[423565618,1780233045000,-714.91,0.00014999,2]
[423565653,1780233045000,-500.0,0.00014999,2]
[423565621,1780233045000,-714.91,0.00014999,2]
[423565644,1780233045000,-500.0,0.00014999,2]
[423565649,1780233045000,-500.0,0.00014999,2]
[423565652,1780233045000,-500.0,0.00014999,2]
[423565650,1780233045000,-500.0,0.00014999,2]
[423565623,1780233045000,-715.06161067,0.00014999,2]
[423565648,1780233045000,-500.0,0.00014999,2]
[423565651,1780233045000,-500.0,0.00014999,2]
[423565656,1780233045000,-500.0,0.00014999,2]
[423565655,1780233045000,-500.0,0.00014999,2]
[423565661,1780233045000,-500.0,0.00014999,2]
[423565659,1780233045000,-500.0,0.00014999,2]
[423565662,1780233045000,-500.0,0.00014999,2]
[423565658,1780233045000,-500.0,0.00014999,2]
[423565664,1780233045000,-174.93720831,0.00014999,2]
[423565657,1780233045000,-500.0,0.00014999,2]
[423565660,1780233045000,-500.0,0.00014999,2]
[423565663,1780233045000,-500.0,0.00014999,2]
[423565646,1780233045000,-500.0,0.00014999,2]
[423565645,1780233045000,-500.0,0.00014999,2]
[423565647,1780233045000,-500.0,0.00014999,2]
[423565642,1780233045000,-500.0,0.00014999,2]
[423565629,1780233045000,-1056.43,0.00014999,2]
[423565624,1780233045000,-1056.43,0.00014999,2]
[423565654,1780233045000,-500.0,0.00014999,2]
[423565625,1780233045000,-1056.43,0.00014999,2]
[423565627,1780233045000,-1056.43,0.00014999,2]
[423565631,1780233045000,-500.0,0.00014999,2]
[423565640,1780233045000,-500.0,0.00014999,2]
[423565637,1780233045000,-500.0,0.00014999,2]
[423565630,1780233045000,-1056.53,0.00014999,2]
[423565626,1780233045000,-1056.43,0.00014999,2]
[423565636,1780233045000,-500.0,0.00014999,2]
[423565639,1780233045000,-500.0,0.00014999,2]
[423565641,1780233045000,-500.0,0.00014999,2]
[423565633,1780233045000,-500.0,0.00014999,2]
[423565634,1780233045000,-500.0,0.00014999,2]
[423565635,1780233045000,-500.0,0.00014999,2]
[423565638,1780233045000,-500.0,0.00014999,2]
[423565643,1780233045000,-500.0,0.00014999,2]
[423565632,1780233045000,-500.0,0.00014999,2]
[423565675,1780233046000,-500.0,0.00014999,2]
[423565672,1780233046000,-500.0,0.00014999,2]
[423565674,1780233046000,-500.0,0.00014999,2]
[423565670,1780233046000,-500.0,0.00014999,2]
[423565673,1780233046000,-500.0,0.00014999,2]
[423565678,1780233046000,-1656.67,0.00014999,2]
[423565669,1780233046000,-500.0,0.00014999,2]
[423565671,1780233046000,-500.0,0.00014999,2]
[423565676,1780233046000,-500.0,0.00014999,2]
[423565667,1780233046000,-41.06653324,0.00014999,2]
[423565665,1780233046000,-325.06279169,0.00014999,2]
[423565666,1780233046000,-500.0,0.00014999,2]
[423565668,1780233046000,-458.93346676,0.00014999,2]
[423565677,1780233046000,-441.80135902,0.00014999,2]
[423565683,1780233046000,-1656.67,0.00014999,2]
[423565685,1780233046000,-300.0,0.00014999,2]
[423565716,1780233046000,-440.83078866,0.0001371,2]
[423565708,1780233046000,-1565.731556,0.0001371,2]
[423565691,1780233046000,-1148.42561482,0.00015,2]
[423565690,1780233046000,-259.09757565,0.00013698,2]
[423565688,1780233046000,-22088.03901503,0.00015,2]
[423565689,1780233046000,-3244.52868969,0.00015,2]
[423565679,1780233046000,-1656.67,0.00014999,2]
[423565682,1780233046000,-1656.67,0.00014999,2]
[423565681,1780233046000,-1656.67,0.00014999,2]
[423565680,1780233046000,-1656.67,0.00014999,2]
[423565687,1780233046000,-500.0,0.00015,2]
[423565686,1780233046000,-35687.09600317,0.00015,2]
[423565684,1780233046000,-1656.87476277,0.00014999,2]
[423565721,1780233047000,-1265.85593126,0.0001371,2]
[423565720,1780233047000,-967.00720562,0.0001371,2]
[423565719,1780233047000,-1777.93353946,0.0001371,2]
[423565722,1780233047000,-376.01075768,0.00015,2]
[423565725,1780233544000,100029.0,0.0003013,120]
[423565733,1780234084000,500.0,0.0003013,120]
[423565734,1780234140000,1000.0,0.00030135,120]
[423565743,1780234232000,-955.88505399,0.00013,15]
[423565820,1780234243000,-503.19129414,0.00013356,2]
[423565823,1780234243000,-274.62,0.00013456,2]
[423565824,1780234243000,-150.0,0.00013488,2]
[423565821,1780234243000,-1266.34,0.00013363,2]
[423565818,1780234243000,-1300.0,0.00013356,2]
[423565815,1780234243000,-128.84357176,0.00013328,2]
[423565817,1780234243000,-236.12847992,0.00013343,2]
[423565816,1780234243000,-21.15642824,0.00013328,2]
[423565822,1780234243000,-2000.0,0.00013421,2]
[423565813,1780234243000,-2.19899035,0.00013,15]
[423565819,1780234243000,-500.0,0.00013356,2]
[423565814,1780234243000,-154.33,0.00013302,2]
[423565825,1780234243000,-150.0,0.00013488,2]
[423565836,1780234243000,-166.66,0.00013699,2]
[423565828,1780234243000,-269.1557045,0.00013488,2]
[423565838,1780234243000,-179.80732891,0.00013719,2]
[423565837,1780234243000,-200.0,0.00013699,2]
[423565835,1780234243000,-200.0,0.00013602,2]
[423565834,1780234243000,-88.02600464,0.00013593,2]
[423565826,1780234243000,-150.0,0.00013488,2]
[423565832,1780234243000,-154.33,0.00013582,2]
[423565831,1780234243000,-163.57,0.00013495,2]
[423565830,1780234243000,-290.28,0.00013495,2]
[423565829,1780234243000,-150.0,0.00013488,2]
[423565827,1780234243000,-153.77401671,0.00013488,2]
[423565833,1780234243000,-411.97399536,0.00013593,2]
[423565919,1780234246000,-1132.00389488,0.00013794,2]
[423565918,1780234246000,-1.85267109,0.00013719,2]
[423565935,1780234555000,500.0,0.0003013,120]
[423565936,1780234818000,219.0,0.00030136,120]
[423565938,1780234994000,1000.0,0.00030136,120]
[423565937,1780234994000,1000.0,0.00030136,120]
[423565942,1780234995000,1000.0,0.00030136,120]
[423565941,1780234995000,1000.0,0.00030136,120]
[423565940,1780234995000,1000.0,0.00030136,120]
[423565939,1780234995000,1000.0,0.00030136,120]
[423565943,1780234996000,1000.0,0.00030136,120]
[423565944,1780234996000,442.67,0.00030136,120]
[423565945,1780235022000,500.0,0.0003013,120]
[423565948,1780235318000,1000.0,0.0003013,120]
[423565949,1780235327000,1000.0,0.0003013,120]
[423565950,1780235335000,1000.0,0.0003013,120]
[423565951,1780235341000,1000.0,0.00030135,120]
[423565952,1780235344000,1000.0,0.0003013,120]
[423566145,1780235356000,1000.0,0.0003013,120]
[423566200,1780235402000,1000.0,0.0003013,120]
[423566201,1780235415000,1000.0,0.0003013,120]
[423566205,1780235431000,-335.43209493,0.00013014,9]
[423566210,1780235435000,1000.0,0.0003013,120]
[423566214,1780235437000,-1893.36669256,0.00013014,9]
[423566213,1780235437000,-2480.69075194,0.00013014,9]
[423566215,1780235437000,-305.153193,0.00013014,9]
[423566216,1780235437000,-322.79623592,0.00013014,9]
[423566357,1780235443000,-6983.44921663,0.00013014,9]
[423566379,1780235445000,-150.0,0.00013488,2]
[423566376,1780235445000,-150.0,0.00013488,2]
[423566375,1780235445000,-150.0,0.00013488,2]
[423566371,1780235445000,-500.0,0.00013356,2]
[423566373,1780235445000,-1229.78214246,0.00013478,2]
[423566370,1780235445000,-1200.0,0.00013356,2]
[423566369,1780235445000,-188.91,0.00013324,2]
[423566362,1780235445000,-181.66,0.00013015,2]
[423566367,1780235445000,-396.1,0.00013118,2]
[423566366,1780235445000,-290.28,0.00013115,2]
[423566363,1780235445000,-150.0,0.00013035,2]
[423566365,1780235445000,-1638.95459129,0.00013093,2]
[423566364,1780235445000,-361.04540871,0.00013093,2]
[423566361,1780235445000,-2003.98326601,0.00013014,9]
[423566368,1780235445000,-181.22,0.00013174,2]
[423566374,1780235445000,-150.0,0.00013488,2]
[423566372,1780235445000,-500.0,0.00013452,2]
[423566377,1780235445000,-150.0,0.00013488,2]
[423566394,1780235445000,-503.0,0.00013729,2]
[423566393,1780235445000,-5413.25414694,0.00013729,2]
[423566391,1780235445000,-200.0,0.000137,5]
[423566390,1780235445000,-200.0,0.00013699,2]
[423566378,1780235445000,-150.0,0.00013488,2]
[423566385,1780235445000,-150.0,0.00013638,2]
[423566386,1780235445000,-150.0,0.00013643,2]
[423566389,1780235445000,-166.66,0.00013699,2]
[423566388,1780235445000,-2500.0,0.00013699,2]
[423566384,1780235445000,-156.46,0.00013609,2]
[423566383,1780235445000,-150.0,0.00013591,2]
[423566381,1780235445000,-150.0,0.00013539,2]
[423566382,1780235445000,-150.0,0.00013563,2]
[423566380,1780235445000,-420.0,0.000135,2]
[423566387,1780235445000,-150.0,0.00013694,2]
[423566392,1780235445000,-150.0,0.00013712,2]
[423566395,1780235446000,-877.403,0.00013729,2]
[423566396,1780235446000,-1344.56867385,0.00013729,2]
[423566399,1780235468000,1000.0,0.0003013,120]
[423566400,1780235479000,1000.0,0.0003013,120]
[423566401,1780235495000,500.0,0.0003013,120]
[423566404,1780235982000,500.0,0.0003013,120]
[423566410,1780236259000,150.2,0.00030137,120]
[423566563,1780236443000,500.0,0.0003013,120]
[423566564,1780236540000,1000.0,0.00030136,120]
[423566577,1780236631000,-402.99644386,0.00013233,2]
[423566569,1780236631000,-316.88,0.00012461,2]
[423566573,1780236631000,-150.0,0.00012781,2]
[423566571,1780236631000,-2000.0,0.00012708,2]
[423566579,1780236631000,-158.0,0.00013243,2]
[423566576,1780236631000,-500.0,0.00013233,2]
[423566570,1780236631000,-188.91,0.00012665,2]
[423566580,1780236631000,-150.0,0.00013243,2]
[423566581,1780236631000,-31123.1878,0.00013243,2]
[423566574,1780236631000,-172.93,0.00012792,2]
[423566578,1780236631000,-1200.0,0.00013242,2]
[423566575,1780236631000,-209.17060647,0.00012848,2]
[423566572,1780236631000,-181.66,0.00012745,2]
[423566585,1780236632000,-204282.08991493,0.00013243,2]
[423566587,1780236632000,-1254.41808677,0.00013243,2]
[423566584,1780236632000,-33078.33423321,0.00013243,2]
[423566582,1780236632000,-1110350.18595491,0.00013243,2]
[423566625,1780236642000,-2391.61261596,0.00013243,2]
[423566628,1780236643000,-3160.18237629,0.00013243,2]
[423566627,1780236643000,-536.05186554,0.00013243,2]
[423566626,1780236643000,-20033.49360004,0.00013243,2]
[423566629,1780236645000,-262.58410223,0.00013243,2]
[423566630,1780236645000,-922.66000002,0.00013243,2]
[423566631,1780236645000,-72947.11680498,0.00013243,2]
[423566632,1780236646000,-8449.38137617,0.00013243,2]
[423566716,1780236702000,248.05143422,0.00030137,120]
[423566719,1780236908000,500.0,0.0003013,120]
[423566734,1780236982000,-500.0,0.00013142,2]
[423566730,1780236982000,-224.72280488,0.00013142,2]
[423566732,1780236982000,-500.0,0.00013142,2]
[423566731,1780236982000,-500.0,0.00013142,2]
[423566729,1780236982000,-1200.0,0.00013141,2]
[423566727,1780236982000,-328.0,0.00013141,2]
[423566725,1780236982000,-1072.899,0.00012978,2]
[423566728,1780236982000,-300.0,0.00013141,2]
[423566724,1780236982000,-2000.0,0.00012551,2]
[423566723,1780236982000,-196.0,0.00012464,2]
[423566735,1780236982000,-500.0,0.00013142,2]
[423566722,1780236982000,-1949.28281452,0.00012442,2]
[423566720,1780236982000,-1594.86775733,0.00012342,2]
[423566726,1780236982000,-243.638,0.00012978,2]
[423566733,1780236982000,-500.0,0.00013142,2]
[423566721,1780236982000,-151.01,0.0001244,2]
[423566738,1780236982000,-150.0,0.00013142,2]
[423566752,1780236982000,-38232.19464726,0.00013243,2]
[423566751,1780236982000,-274.90847816,0.00013242,2]
[423566749,1780236982000,-159.07518827,0.00013242,2]
[423566747,1780236982000,-462.67809105,0.00013242,2]
[423566748,1780236982000,-223.65930003,0.00013242,2]
[423566745,1780236982000,-151.0,0.0001324,2]
[423566750,1780236982000,-500.0,0.00013242,2]
[423566746,1780236982000,-543.29382288,0.00013242,2]
[423566742,1780236982000,-571.37085321,0.00013192,2]
[423566743,1780236982000,-601.8343991,0.00013192,2]
[423566741,1780236982000,-5000.0,0.00013143,2]
[423566740,1780236982000,-8720.89636894,0.00013143,2]
[423566739,1780236982000,-31270.42658592,0.00013143,2]
[423566736,1780236982000,-500.0,0.00013142,2]
[423566744,1780236982000,-209.17060647,0.0001321,2]
[423566737,1780236982000,-519.07128198,0.00013142,2]
[423566755,1780237117000,127053.3953,0.00030136,120]
[423566760,1780237394000,500.0,0.0003013,120]
[423566763,1780237738000,216.48,0.00030082,120]
[423566765,1780237740000,383.0,0.0003013,120]
[423566764,1780237740000,1000.0,0.00030136,120]
[423566766,1780237766000,-408.044357,0.00011533,2]
[423566767,1780237766000,-59.927143,0.00011591,2]
[423566804,1780237833000,-500.0,0.00011603,2]
[423566800,1780237833000,-330.72761024,0.00011603,2]
[423566805,1780237833000,-500.0,0.00011603,2]
[423566796,1780237833000,-451.9071282,0.00011603,2]
[423566799,1780237833000,-169.27238976,0.00011603,2]
[423566802,1780237833000,-500.0,0.00011603,2]
[423566803,1780237833000,-500.0,0.00011603,2]
[423566812,1780237833000,-53974.77259635,0.00011604,2]
[423566806,1780237833000,-500.0,0.00011603,2]
[423566818,1780237833000,-182.32,0.00011675,2]
[423566831,1780237833000,-199.68,0.00011763,2]
[423566810,1780237833000,-179.24933723,0.00011603,2]
[423566807,1780237833000,-500.0,0.00011603,2]
[423566811,1780237833000,-328.75066277,0.00011604,2]
[423566820,1780237833000,-150.0,0.00011706,2]
[423566809,1780237833000,-320.75066277,0.00011603,2]
[423566808,1780237833000,-500.0,0.00011603,2]
[423566814,1780237833000,-1229.00674088,0.00011604,2]
[423566824,1780237833000,-222.27,0.00011732,2]
[423566845,1780237833000,-182.32,0.00011934,2]
[423566801,1780237833000,-500.0,0.00011603,2]
[423566816,1780237833000,-2000.0,0.00011626,2]
[423566795,1780237833000,-600.5944716,0.00011603,2]
[423566784,1780237833000,-500.0,0.00011603,2]
[423566797,1780237833000,-500.0,0.00011603,2]
[423566841,1780237833000,-150.0,0.00011822,2]
[423566776,1780237833000,-106.93981057,0.00011591,2]
[423566774,1780237833000,-2000.0,0.00011439,2]
[423566775,1780237833000,-186.42,0.00011454,2]
[423566777,1780237833000,-333.13304643,0.00011591,2]
[423566779,1780237833000,-223.44130919,0.00011602,2]
[423566778,1780237833000,-300.0,0.00011602,2]
[423566780,1780237833000,-531.73649619,0.00011602,2]
[423566781,1780237833000,-444.82219462,0.00011602,2]
[423566782,1780237833000,-300.0,0.00011602,2]
[423566783,1780237833000,-150.0,0.00011602,2]
[423566794,1780237833000,-500.0,0.00011603,2]
[423566788,1780237833000,-500.0,0.00011603,2]
[423566785,1780237833000,-615.36240174,0.00011603,2]
[423566787,1780237833000,-605.39609471,0.00011603,2]
[423566786,1780237833000,-500.0,0.00011603,2]
[423566791,1780237833000,-500.0,0.00011603,2]
[423566792,1780237833000,-500.0,0.00011603,2]
[423566790,1780237833000,-500.0,0.00011603,2]
[423566793,1780237833000,-500.0,0.00011603,2]
[423566789,1780237833000,-288.3234929,0.00011603,2]
[423566798,1780237833000,-500.0,0.00011603,2]
[423566833,1780237833000,-200.0,0.00011766,2]
[423566885,1780237833000,-737.13277281,0.0001254,2]
[423566822,1780237833000,-2945.15,0.00011711,2]
[423566889,1780237833000,-182.32,0.00012581,2]
[423566876,1780237833000,-1285.4667754,0.00012443,2]
[423566874,1780237833000,-2943.07862845,0.0001242,2]
[423566880,1780237833000,-182.32,0.00012451,2]
[423566896,1780237833000,-182.32,0.00012645,2]
[423566886,1780237833000,-500.0,0.00012561,2]
[423566898,1780237833000,-255.0,0.00012669,2]
[423566900,1780237833000,-250.0,0.00012686,2]
[423566901,1780237833000,-500.0,0.00012686,2]
[423566899,1780237833000,-421.35103781,0.00012674,2]
[423566911,1780237833000,-2000.0,0.00012869,2]
[423566910,1780237833000,-182.32,0.00012839,2]
[423566905,1780237833000,-600.0,0.000127,4]
[423566909,1780237833000,-1200.0,0.000128,4]
[423566903,1780237833000,-500.0,0.00012694,2]
[423566907,1780237833000,-1680.0,0.00012762,2]
[423566904,1780237833000,-26897.0,0.00012694,2]
[423566906,1780237833000,-182.32,0.0001271,2]
[423566902,1780237833000,-342.49977101,0.00012686,2]
[423566913,1780237833000,-182.32,0.00012904,2]
[423566912,1780237833000,-1800.0,0.000129,4]
[423566890,1780237833000,-250.0,0.00012583,2]
[423566914,1780237833000,-222.27,0.00012905,2]
[423566908,1780237833000,-182.32,0.00012775,2]
[423566882,1780237833000,-182.32,0.00012516,2]
[423566893,1780237833000,-222.27,0.00012612,2]
[423566839,1780237833000,-182.32,0.00011805,2]
[423566846,1780237833000,-182.32,0.00011999,2]
[423566843,1780237833000,-182.32,0.00011869,2]
[423566826,1780237833000,-776.02,0.00011739,2]
[423566835,1780237833000,-2775.74,0.00011779,2]
[423566837,1780237833000,-1369.39,0.00011779,2]
[423566854,1780237833000,-182.32,0.00012128,2]
[423566850,1780237833000,-222.27,0.00012025,2]
[423566848,1780237833000,-4594.92742128,0.00012013,2]
[423566868,1780237833000,-587.9,0.00012368,2]
[423566828,1780237833000,-182.32,0.0001174,2]
[423566866,1780237833000,-216.48,0.00012329,2]
[423566852,1780237833000,-182.32,0.00012063,2]
[423566860,1780237833000,-409.61465953,0.0001227,2]
[423566864,1780237833000,-182.32,0.00012322,2]
[423566858,1780237833000,-182.32,0.00012257,2]
[423566862,1780237833000,-222.27,0.00012318,2]
[423566870,1780237833000,-182.32,0.00012387,2]
[423566856,1780237833000,-182.32,0.00012193,2]
[423566872,1780237833000,-500.0,0.0001242,2]
[423566878,1780237833000,-1571.12605882,0.00012443,2]
[423566894,1780237833000,-240.45778418,0.00012617,2]
[423566916,1780237834000,-250.0,0.0001303,2]
[423566915,1780237834000,-500.0,0.00012968,2]
[423566917,1780237834000,-517.01439481,0.00013033,2]
[423566919,1780237834000,-500.0,0.00013041,2]
[423566921,1780237834000,-16245.4575975,0.00013043,2]
[423566918,1780237834000,-240.73375964,0.00013036,2]
[423566922,1780237834000,-143696.14066987,0.00013043,2]
[423566923,1780237834000,-68587.78970473,0.00013043,2]
[423566920,1780237834000,-600.0,0.00013043,2]
[423566930,1780237838000,-3103.0,0.00012972,2]
[423566929,1780237838000,-3468.03597417,0.00012972,2]
[423566932,1780237838000,-36.85301534,0.00013043,2]
[423566928,1780237838000,-463.01870245,0.00012972,2]
[423566948,1780237838000,-14.16413576,0.00013043,2]
[423566931,1780237838000,-1842.57198466,0.00012972,2]
[423566953,1780237838000,-52867.59675925,0.00013043,2]
[423566951,1780237838000,-19024.14640704,0.00013043,2]
[423566971,1780237840000,-435.57648359,0.00013043,2]
[423566970,1780237840000,-497.21661471,0.00013043,2]
[423567237,1780237848000,-974.46124942,0.00013043,2]
[423567236,1780237848000,-3192.01965773,0.00013043,2]
[423567235,1780237848000,-1262.9,0.00013043,2]
[423567234,1780237848000,-1868.9184465,0.00013043,2]
[423567233,1780237848000,-3430.64668216,0.00013043,2]
[423567231,1780237848000,-1634.0532,0.00013043,2]
[423567232,1780237848000,-10533.523,0.00013043,2]
[423567227,1780237848000,-330.61891391,0.00013043,2]
[423567228,1780237848000,-300.19788409,0.00013043,2]
[423567238,1780237849000,-503.2879202,0.00013043,2]
[423567239,1780237849000,-441.68468946,0.00013043,2]
[423567257,1780237858000,500.0,0.0003013,120]
[423567258,1780237921000,1379.0,0.0003013,120]
[423567260,1780237923000,338.0,0.0003013,120]
[423567259,1780237923000,1233.0,0.0003013,120]
[423567261,1780237924000,937.0,0.0003013,120]
[423567262,1780237925000,314.0,0.0003013,120]
[423567263,1780237926000,514.0,0.0003013,120]
[423567264,1780237927000,770.0,0.0003013,120]
[423567266,1780237931000,253.0,0.0003013,120]
[423567265,1780237931000,288.0,0.0003013,120]
[423567267,1780237932000,395.0,0.0003013,120]
[423567268,1780237933000,466.0,0.0003013,120]
[423567269,1780237934000,390.0,0.0003013,120]
[423567270,1780237934000,410.0,0.0003013,120]
[423567271,1780237935000,363.0,0.0003013,120]
[423567272,1780237936000,150.0,0.0003013,120]
[423567273,1780237942000,4095.0,0.0003013,120]
[423567274,1780237943000,16262.0,0.0003013,120]
[423567275,1780237944000,5072.0,0.0003013,120]
[423567277,1780237945000,998.0,0.0003013,120]
[423567276,1780237945000,870.0,0.0003013,120]
[423567278,1780237946000,17380.0,0.0003013,120]
[423567280,1780237983000,1366.0,0.0003013,120]
[423567279,1780237983000,1995.0,0.0003013,120]
[423567281,1780237984000,486.0,0.0003013,120]
[423567282,1780237985000,536.0,0.0003013,120]
[423567284,1780237990000,339.0,0.0003013,120]
[423567283,1780237990000,468.0,0.0003013,120]
[423567285,1780237991000,279.68220849,0.0003013,120]
[423567286,1780237993000,5087.0,0.0003013,120]
[423567287,1780237994000,6626.0,0.0003013,120]
[423567288,1780237995000,15886.0,0.0003013,120]